Cogmind - Beta 14 @@@ ROGUE MODE // 2025.03.15 @ 17:49:42 Player: Darsidian Result: Destroyed by G-50 Soldier with Heavy Laser Performance ------------- Evolutions (4) 2000 Regions Visited (8) 1600 Robots Destroyed (77) 385 Value Destroyed (3731) 3731 Prototype IDs (9) 180 Alien Tech Used (0) 0 Bonus (3082) 3082 TOTAL SCORE: 10978 Bonus ------- High Alert Combat Kills 978 Follower Combat Kills 1175 Entered Garrisons 200 Used RIF Installer 500 Registered with UFD 300 Friendly Fire -71 Cogmind --------- Core Integrity 0/850 Matter 178/300 Energy 68/100 System Corruption 0% Temperature Cool (52) Movement Core (50) Location -6/Factory Parts ------- > --- POWER (1) -------- (None) > --- PROPULSION (4) --- (None) > --- UTILITY (7) ------ (None) > --- WEAPON (3) ------- (None) > --- INVENTORY (5) ---- Improved Deuterium Engine Relay Coupler [Brawler] (33) Shock Rifle Large Botcube Peak State ------------ > --- POWER ------------ Improved Deuterium Engine > --- PROPULSION ------- Improved Heavy Treads Improved Heavy Treads > --- UTILITY ---------- Advanced Heat Sink Cargo Storage Unit Improved Trap Scanner Machine Analyzer Hacking Suite System Shield > --- WEAPON ----------- Phase Gun Phase Gun Matter Neutralizer > --- INVENTORY -------- Light Nuclear Core Improved Heavy Treads Advanced Heat Sink Large Storage Unit Humpback High-capacity Battery Improved Signal Interpreter Surveybot 17 Chip Transport Network Coupler ECM Suite Improved Light Armor Plating Improved Light Armor Plating Advanced Shield Generator Authchip [R/NC] Relay Coupler [NC] Relay Coupler [NC] Relay Coupler [Swarmer] Relay Coupler [Grunt] Relay Coupler [Brawler] Relay Coupler [Hunter] Relay Coupler [Heavy] System Restoration Module Gatling Laser Matter Neutralizer Improved Grenade Launcher Datajack CPS Tube Multitool [Rating: 84] Favorites ----------- Power Improved Ion Engine Engine Improved Ion Engine Power Core Fission Core Propulsion Compact Wheel Treads Improved Heavy Treads Wheel Compact Wheel Utility System Shield Device Advanced Heat Sink Storage Humpback Processor Machine Analyzer Hackware System Shield Protection Reflective Plating Weapon Phase Gun Energy Gun Phase Gun Energy Cannon Heavy Particle Cannon Ballistic Gun Assault Rifle Ballistic Cannon Light Cannon Launcher Rocket Launcher Special Weapon Remote Datajack Special Melee Weapon Datajack Build | -11 -10 -10 -10 -8 -8 -6 -6 -6 ------- Run | Yrd Mat Min Sub Rec Scr Fac Gar Fac Slots Evolved 8 | . . . . . . 8 . . Power . | . . . . . . . . . Propulsion 2 | . . . . . . 2 . . Utility 5 | . . . . . . 5 . . Weapon 1 | . . . . . . 1 . . Parts Attached 187 | 8 6 5 15 14 5 22 62 50 Power 13 | 1 . 1 1 3 . 1 5 1 Engine 11 | 1 . 1 1 3 . 1 4 . Core 2 | . . . . . . . 1 1 Reactor . | . . . . . . . . . Propulsion 23 | 2 2 . 4 3 . 3 9 . Treads 5 | . . . . . . . 5 . Leg . | . . . . . . . . . Wheel 18 | 2 2 . 4 3 . 3 4 . Hover . | . . . . . . . . . Flight . | . . . . . . . . . Utility 56 | 3 1 2 1 3 5 6 19 16 Device 25 | 1 1 2 1 1 2 3 11 3 Storage 9 | 2 . . . 1 3 . 3 . Processor 4 | . . . . 1 . . 1 2 Hackware 11 | . . . . . . 2 3 6 Protection 7 | . . . . . . 1 1 5 Artifact . | . . . . . . . . . Weapon 95 | 2 3 2 9 5 . 12 29 33 Energy Gun 25 | 1 1 . 1 1 . 5 6 10 Energy Cannon 17 | . . . 2 2 . 1 9 3 Ballistic Gun 14 | 1 . . 2 1 . . 2 8 Ballistic Cannon 9 | . 1 . 3 1 . 2 2 . Launcher 8 | . . 1 1 . . 1 4 1 Special Weapon 18 | . 1 1 . . . 2 3 11 Impact Weapon . | . . . . . . . . . Slashing Weapon . | . . . . . . . . . Piercing Weapon . | . . . . . . . . . Special Melee Weapon 4 | . . . . . . 1 3 . Unidentified Prototypes 1 | . . . . . . . 1 . Parts Lost 38 | . 2 . 2 . . 6 16 12 Power 5 | . . . 1 . . 1 2 1 Propulsion 10 | . 1 . . . . . 7 2 Utility 7 | . . . . . . 2 1 4 Weapon 16 | . 1 . 1 . . 3 6 5 Highest Loss Streak 11 | . 2 . 1 . . 5 7 11 To Critical Strikes . | . . . . . . . . . Average Slot Usage (%) 87 | . 98 100 97 98 88 85 83 77 Engine 9 | . 14 14 13 12 14 4 5 2 Treads 3 | . . . . . . . 7 12 Wheel 20 | . 27 28 28 28 28 24 10 . Device 6 | . 14 14 14 9 . 10 9 5 Storage 10 | . 14 14 14 14 13 6 7 5 Processor 3 | . . . . 4 3 . 5 8 Hackware 6 | . . . . . . 12 14 16 Energy Gun 11 | . 12 . 1 3 14 15 10 13 Energy Cannon 8 | . . . 5 4 14 . 6 1 Ballistic Gun 1 | . 14 13 4 2 . . . 1 Ballistic Cannon 1 | . . 2 6 17 . . . . Peak Build Rating 84 | 9 9 11 14 16 22 47 84 84 Average Rating 33 | 6 7 9 12 11 15 41 61 75 On Entrance 22 | . 9 7 8 11 15 22 42 84 Naked Turns 9 | . . . . . . . . 9 Heaviest Build 240 | 13 14 15 24 24 218 232 240 177 Greatest Support 150 | 26 32 32 40 30 28 64 150 150 Greatest Overweight (x) 11 | . . . 1 1 7 8 11 1 Average Overweight (x) 1 | . . . . . 2 3 2 . Largest Inventory Capacity 35 | 8 8 8 8 8 35 35 35 30 Average Capacity 23 | 7 8 8 8 8 23 35 31 29 Most Carried 34 | 6 8 8 8 8 30 34 33 30 Average Carried 17 | 2 7 6 7 7 10 28 28 25 Final Capacity 35 | 8 8 8 8 8 35 35 30 5 Final Carried 32 | 6 6 7 8 8 30 32 30 5 Class Distribution -------------------- 31% | Mutant 22% | Hauler-Mutant 22% | Bothacker-Skirmisher 6% | Hauler-Skirmisher 6% | Scavenger-Mutant 5% | Hauler-Tank Dominant Class ---------------- Mutant | -10/Materials Mutant | -10/Mines Mutant | -10/Subcaves Scavenger-Mutant | -8/Recycling Hauler-Mutant | -8/Scraptown Hauler-Tank | -6/Factory Bothacker-Skirmisher | -6/Garrison Bothacker-Skirmisher | -6/Factory Resources | -11 -10 -10 -10 -8 -8 -6 -6 -6 ----------- Run | Yrd Mat Min Sub Rec Scr Fac Gar Fac Matter Collected 2926 | 304 94 30 340 167 320 266 707 698 Remotely . | . . . . . . . . . Salvage Created 3622 | 170 116 31 258 319 . 591 1117 1020 Parts 176 | 11 5 9 19 9 . 36 47 40 Haulers Intercepted 2 | . . . . . . 1 . 1 Recyclers Shooed 4 | . . . . 2 . 1 . 1 Parts Field Recycled . | . . . . . . . . . Retrieved Matter . | . . . . . . . . . Parts Self-Destructed 3 | . . . 3 . . . . . Prevented . | . . . . . . . . . Kills | -11 -10 -10 -10 -8 -8 -6 -6 -6 ------- Run | Yrd Mat Min Sub Rec Scr Fac Gar Fac Combat Hostiles Destroyed 57 | . 3 3 10 . . 7 18 16 Guns 24 | . 3 . . . . 1 4 16 Cannons 11 | . . . 6 . . 1 4 . AOE 20 | . . 3 4 . . 4 9 . Classes Destroyed 17 | 2 3 . 3 . . 2 4 3 Builder 1 | . . . . . . 1 . . Tunneler 6 | 3 . 1 . . . 1 . 1 Hauler 2 | . . . . . . 1 . 1 Recycler 4 | 1 . . . 2 . 1 . . Turret 2 | . . . 2 . . . . . Watcher 5 | . 2 . . . . 1 1 1 Swarmer 17 | . 2 3 3 . . 3 5 1 Grunt 17 | . 1 . . . . 4 8 4 Brawler 2 | . . . . . . . 1 1 Duelist 3 | . . . . . . . . 3 Sentry 3 | . . . . . . . 1 2 Specialist 2 | . . . . . . . . 2 Hunter 3 | . . . . . . . 2 1 Programmer 2 | . . . . . . . . 2 Behemoth 1 | . . . . . . . 1 . Artisan 1 | . . . 1 . . . . . Subdweller 7 | . . . 7 . . . . . Best Kill Streak 4 | 3 1 3 3 1 . 3 4 3 Combat Bots Only 4 | . 1 3 3 . . 3 4 2 Max Kills in Single Turn 3 | 1 1 3 2 1 . 2 3 2 Gunslinging . | . . . . . . . . . Exploded 3 | . . 3 2 . . 2 3 . Melee . | . . . . . . . . . Uniques/NPCs Destroyed . | . . . . . . . . . Combat | -11 -10 -10 -10 -8 -8 -6 -6 -6 -------- Run | Yrd Mat Min Sub Rec Scr Fac Gar Fac Hostile Shots Fired 590 | . 36 3 57 . . 33 206 255 Missed 179 | . 8 1 23 . . 9 66 72 Damage Taken 6869 | . 321 17 457 . . 420 2559 3095 Core 1097 | . 117 . 119 . . 90 308 463 Absorbed by Shields 79 | . . . . . . . . 79 Ignored by Resistances 48 | . . . . . . 48 . . Regen/Repaired (Parts) 572 | . . . . . . . 19 553 Core Remaining (%) 52 | 100 . . . . 5 . . . Volleys Fired 293 | 8 25 5 41 15 . 28 76 95 Largest 3 | 2 2 1 2 1 . 3 3 3 Hottest 281 | 70 100 100 113 80 . 210 281 281 Shots Fired 541 | 15 42 5 49 14 . 52 169 195 Gun 334 | 15 41 3 7 5 . 37 76 150 Cannon 145 | . . . 35 9 . 10 80 11 Launcher 21 | . . 1 7 . . 2 11 . Special 41 | . 1 1 . . . 3 2 34 Kinetic 107 | 8 18 3 23 6 . 6 2 41 Thermal 343 | 7 24 1 19 8 . 9 155 120 Explosive 21 | . . 1 7 . . 2 11 . Electromagnetic 34 | . . . . . . 34 . . Robot Hit Streak 17 | 6 16 1 5 7 . 11 10 17 Robot Miss Streak 6 | 1 2 2 3 3 . 6 4 5 Penetration Max 1 | . . . . . . . . 1 Secondary Targets 3 | . . . . . . . 1 2 Max Gunslinging Chain 1 | . . . . . . . 1 1 Autonomous 6 | . . . 3 . . 3 . . Shots Hit Robots 352 | 9 30 1 33 9 . 43 94 133 Core Hits 214 | 4 7 4 22 4 . 48 72 53 Critical Kills 4 | . . . . . . . 1 3 Critical Parts Destroyed 6 | . . . . . . . . 6 Critical Strikes 17 | . 2 . 1 . . . 2 12 Burn 5 | . 2 . . . . . 1 2 Meltdown 1 | . . . . . . . 1 . Destroy 10 | . . . . . . . . 10 Blast 1 | . . . 1 . . . . . Melee Attacks 5 | . . . . . . 1 4 . Impact . | . . . . . . . . . Slashing . | . . . . . . . . . Piercing . | . . . . . . . . . Sneak Attacks . | . . . . . . . . . Combat Hostiles . | . . . . . . . . . Follow-up Attacks . | . . . . . . . . . Damage Inflicted 9642 | 122 376 154 1148 232 . 1271 4084 2255 Guns 4316 | 122 376 15 62 103 . 400 1164 2074 Cannons 2690 | . . . 551 129 . 185 1644 181 Explosions 2636 | . . 139 535 . . 686 1276 . Melee . | . . . . . . . . . Ramming . | . . . . . . . . . Kinetic 1050 | 85 186 15 278 103 . 110 56 217 Thermal 5856 | 37 190 . 335 129 . 375 2752 2038 Explosive 2310 | . . 139 535 . . 360 1276 . Electromagnetic 426 | . . . . . . 426 . . Impact . | . . . . . . . . . Slashing . | . . . . . . . . . Piercing . | . . . . . . . . . Highest Corruption . | . . . . . . . . . Average Corruption . | . . . . . . . . . Corruption Purged . | . . . . . . . . . Corruption Blocked . | . . . . . . . . . Overload Shots 2 | . . . . . . . 2 . Overflow Damage 66 | . . . 19 . . 21 6 20 Projectiles 39 | . . . 19 . . . . 20 Explosions 27 | . . . . . . 21 6 . Melee . | . . . . . . . . . Knockbacks 2 | . . . . . . 1 1 . Impact . | . . . . . . . . . Kinetic 2 | . . . . . . 1 1 . Secondary . | . . . . . . . . . Self-Inflicted Damage 181 | . . . 50 . . 21 110 . Shots 7 | . . . 2 . . 1 4 . Rammed . | . . . . . . . . . Targets Rammed . | . . . . . . . . . Kicked . | . . . . . . . . . Crushed . | . . . . . . . . . Highest Temperature 557 | 27 227 20 14 150 . 261 557 421 Average Temperature 116 | 13 91 12 6 53 . 87 122 155 Received Heat Transfer 1715 | . 147 . 36 . . 165 462 905 Effects 12 | . . . . . . . 8 4 Shutdowns 2 | . . . . . . . 2 . Energy Bleed 3 | . . . . . . . 1 2 Interference 3 | . . . . . . . 1 2 Damage (major) 4 | . . . . . . . 4 . Siege Activations . | . . . . . . . . . Robots Corrupted 1 | . . . . . . 1 . . Combat Hostiles 1 | . . . . . . 1 . . Parts Fried 1 | . . . . . . 1 . . Impact Corruptions . | . . . . . . . . . Robots Melted 1 | . . . . . . . 1 . Combat Hostiles 1 | . . . . . . . 1 . Parts Melted 12 | . . . . . . . 2 10 Heat Transferred 9207 | 111 703 . 507 185 . 536 3961 3204 Parts Sabotaged 2 | . . . . . . . . 2 Parts Stolen . | . . . . . . . . . Parts Stripped . | . . . . . . . . . Power Chain Reactions 5 | . . . . . . 5 . . Alert | -11 -10 -10 -10 -8 -8 -6 -6 -6 ------- Run | Yrd Mat Min Sub Rec Scr Fac Gar Fac Peak Influence 2536 | 20 148 150 . 121 . 175 2536 1542 Initial 1331 | . 13 63 . 82 . . 28 1331 Average 849 | 9 77 132 . 76 . 21 1142 1340 Maximum Alert Level 5 | . . . . . . . 5 4 Low Security (%) 33 | 100 100 100 . 100 . 100 5 . Level 1 2 | . . . . . . . 6 . Level 2 8 | . . . . . . . 18 . Level 3 15 | . . . . . . . 32 . Level 4 25 | . . . . . . . 8 100 Level 5 13 | . . . . . . . 29 . High Security . | . . . . . . . . . Max Security . | . . . . . . . . . Squads Dispatched 17 | . 3 . . . . 1 . 13 Investigation 2 | . 1 . . . . . . 1 Extermination 5 | . . . . . . 1 . 4 Reinforcement 7 | . 2 . . . . . . 5 Assault 3 | . . . . . . . . 3 Garrison . | . . . . . . . . . Intercept . | . . . . . . . . . Searches Triggered . | . . . . . . . . . Construction Impeded 1 | . . . . . . . . 1 Haulers Reinforced . | . . . . . . . . . Active Scanning Responses . | . . . . . . . . . Cargo Convoy Interrupts 1 | . . . . . . . . 1 Stealth | -11 -10 -10 -10 -8 -8 -6 -6 -6 --------- Run | Yrd Mat Min Sub Rec Scr Fac Gar Fac Distress Signals 4 | . 1 . . . . . 1 2 Communications Jammed 5 | . . . . . . 5 . . Distress Signals 1 | . . . . . . 1 . . Times Spotted 128 | . 11 3 14 . . 8 51 41 Peak Tracking Total 6 | . 3 3 6 . . 4 5 6 Tactical Retreats 9 | . 3 . 3 . . . 2 1 Traps | -11 -10 -10 -10 -8 -8 -6 -6 -6 ------- Run | Yrd Mat Min Sub Rec Scr Fac Gar Fac Traps Triggered 2 | . 1 . . . . . 1 . Indirectly . | . . . . . . . . . Trap Hack Attempts 8 | . . . . . . . 8 . Triggered . | . . . . . . . . . Disarmed . | . . . . . . . . . Reprogrammed 2 | . . . . . . . 2 . Reused . | . . . . . . . . . Traps Extracted . | . . . . . . . . . Installed . | . . . . . . . . . Triggered 1 | . . . . . . . . 1 Machines | -11 -10 -10 -10 -8 -8 -6 -6 -6 ---------- Run | Yrd Mat Min Sub Rec Scr Fac Gar Fac Machines Disabled 12 | . . . 1 . . 4 7 . Max in Single Turn 2 | . . . 1 . . 2 1 . Garrison Relay 5 | . . . . . . . 5 . Machines Repaired . | . . . . . . . . . Machines Dismantled . | . . . . . . . . . Machines Sabotaged . | . . . . . . . . . Overloaded Fab Kills . | . . . . . . . . . Hacking | -11 -10 -10 -10 -8 -8 -6 -6 -6 --------- Run | Yrd Mat Min Sub Rec Scr Fac Gar Fac Machines Accessed 28 | . 4 . 1 6 7 4 2 4 Terminals 14 | . 3 . . 3 . 3 2 3 Fabricators . | . . . . . . . . . Repair Stations 1 | . . . . . . . . 1 Recycling Units 2 | . 1 . . 1 . . . . Scanalyzers . | . . . . . . . . . Garrison Access 1 | . . . . . . 1 . . Total Hacks 129 | . 13 . 4 46 42 9 4 11 Successful 101 | . 7 . 4 36 42 6 1 5 Failed 28 | . 6 . . 10 . 3 3 6 Catastrophic 2 | . 1 . . . . 1 . . Database Lockouts . | . . . . . . . . . Manual 37 | . 10 . . 12 . 8 . 7 Terminals 48 | . 11 . . 16 . 8 4 9 Fabricators . | . . . . . . . . . Repair Stations 2 | . . . . . . . . 2 Recycling Units 7 | . 2 . . 5 . . . . Scanalyzers . | . . . . . . . . . Garrison Access 1 | . . . . . . 1 . . Terminal Hacks 79 | . 3 . 4 28 42 . 1 1 Record 65 | . . . 4 24 37 . . . Robot Schematic 2 | . . . . 2 . . . . Robot Analysis 5 | . . . . 1 4 . . . Open Door 1 | . . . . . . . 1 . Open DSF 1 | . . . . . . . . 1 Recall Investigation 1 | . 1 . . . . . . . Zone Layout 2 | . 2 . . . . . . . Derelict Proto ID Bank 1 | . . . . . 1 . . . Release Object 1 | . . . . 1 . . . . Fabricator Hacks . | . . . . . . . . . Repair Station Hacks 1 | . . . . . . . . 1 Scan Component 1 | . . . . . . . . 1 Recycling Unit Hacks 3 | . 1 . . 2 . . . . Report Inventory 2 | . 1 . . 1 . . . . Retrieve Components 1 | . . . . 1 . . . . Scanalyzer . | . . . . . . . . . Garrison Access Hacks 1 | . . . . . . 1 . . Unlock Access 1 | . . . . . . 1 . . Unauthorized Hacks 17 | . 3 . . 6 . 5 . 3 Terminals 15 | . 3 . . 4 . 5 . 3 Track 2 | . . . . . . 2 . . Botnet 9 | . 2 . . 3 . 2 . 2 Operators 4 | . 1 . . 1 . 1 . 1 Fabricators . | . . . . . . . . . Repair Stations . | . . . . . . . . . Recycling Units 2 | . . . . 2 . . . . Recyclers 1 | . . . . 1 . . . . Mask 1 | . . . . 1 . . . . Scanalyzers . | . . . . . . . . . Garrison Access . | . . . . . . . . . Data Cores Recovered . | . . . . . . . . . Used . | . . . . . . . . . Hacking Detections 13 | . 4 . . 3 . 2 1 3 Full Trace Events 2 | . 1 . . . . . 1 . Feedback Events . | . . . . . . . . . Feedback Blocked . | . . . . . . . . . Robot Schematics Acquired 2 | . . . . 2 . . . . Robots Built . | . . . . . . . . . Authchips . | . . . . . . . . . Time . | . . . . . . . . . Total Robot Build Rating . | . . . . . . . . . Part Schematics Acquired . | . . . . . . . . . Parts Built . | . . . . . . . . . Authchips . | . . . . . . . . . Time . | . . . . . . . . . Total Part Build Rating . | . . . . . . . . . Parts Repaired . | . . . . . . . . . Time . | . . . . . . . . . Parts Recycled . | . . . . . . . . . Recycled Matter . | . . . . . . . . . Retrieved Matter . | . . . . . . . . . Retrieved Components 3 | . . . . 3 . . . . Parts Scanalyzed . | . . . . . . . . . Part Schematics Acquired . | . . . . . . . . . Parts Damaged . | . . . . . . . . . Bothacking | -11 -10 -10 -10 -8 -8 -6 -6 -6 ------------ Run | Yrd Mat Min Sub Rec Scr Fac Gar Fac Used RIF Installer 1 | . . . . . . . 1 . Robots Hacked 16 | . . . . . . 1 2 13 Non-combat 8 | . . . . . . 1 . 7 Combat 8 | . . . . . . . 2 6 Robot Hacks Applied 21 | . . . . . . 1 2 18 parse_system 1 | . . . . . . . . 1 no_distress 1 | . . . . . . 1 . . find_recycling 1 | . . . . . . . . 1 ignore_parts 4 | . . . . . . . . 4 purge_threat 1 | . . . . . . . . 1 find_shortcuts 1 | . . . . . . . . 1 find_garrison 1 | . . . . . . . . 1 disrupt_area 1 | . . . . . . . . 1 overload_power 1 | . . . . . . . . 1 formatsys_low 3 | . . . . . . . . 3 formatsys_high 6 | . . . . . . . 2 4 Relay Couplers Released 18 | . . . . . . . 18 . Machine Destruction 18 | . . . . . . . 18 . Attached 9 | . . . . . . . 3 6 Fabnet Peak Effective % . | . . . . . . . . . Robots Rewired . | . . . . . . . . . Allies Hacked . | . . . . . . . . . Hacks Repelled . | . . . . . . . . . Allies | -11 -10 -10 -10 -8 -8 -6 -6 -6 -------- Run | Yrd Mat Min Sub Rec Scr Fac Gar Fac Total Allies 13 | . . . . . 1 . 4 8 Largest Group 5 | . . . . . 1 1 4 5 Highest-Rated Group 226 | . . . . . 71 71 169 226 Highest-Rated Ally 105 | . . . . . 71 71 71 105 Total Orders 11 | . . . . . . 2 . 9 STAY 1 | . . . . . . 1 . . FOLLOW 1 | . . . . . . 1 . . GUARD 3 | . . . . . . . . 3 AID 6 | . . . . . . . . 6 Ally Attacks 137 | . . . . . . . 64 73 Total Damage 5240 | . . . . . . . 2845 2395 Kills 32 | . . . . . . . 21 11 Allies Corrupted . | . . . . . . . . . Allies Melted 1 | . . . . . . . . 1 Intel | -11 -10 -10 -10 -8 -8 -6 -6 -6 ------- Run | Yrd Mat Min Sub Rec Scr Fac Gar Fac Robot Analysis Total 5 | . . . . 1 4 . . . Derelict Logs Recovered 1 | . . . 1 . . . . . Drone Launches . | . . . . . . . . . Drone Recoveries . | . . . . . . . . . Exploration | -11 -10 -10 -10 -8 -8 -6 -6 -6 ------------- Run | Yrd Mat Min Sub Rec Scr Fac Gar Fac Turns Passed 14558 | 122 385 268 1338 598 5748 932 3596 1571 Spaces Moved 8680 | 93 232 135 978 561 4145 448 1591 497 Core 23 | 11 . . . . . . . 12 Treads 1250 | . . . . . . . 765 485 Legs . | . . . . . . . . . Wheels 7407 | 82 232 135 978 561 4145 448 826 . Hover . | . . . . . . . . . Flight . | . . . . . . . . . Fastest Speed 50 | 50 90 100 100 90 95 145 120 50 Average Speed 143 | 85 95 100 110 92 133 153 191 235 Slowest Speed 320 | 100 100 100 120 110 200 215 320 240 Overloaded Moves . | . . . . . . . . . Propulsion Burnouts . | . . . . . . . . . Robots Hopped . | . . . . . . . . . Cave-ins Triggered . | . . . . . . . . . Exploration Rate (%) 42 | 4 41 25 44 79 95 7 73 10 Regions Visited 8 Branch Regions 4 Pre-discovered Areas 4 | . . . . . 4 . . . Known Exits Taken 1 | . . . . . . 1 . . Unknown Exits Taken 6 | 1 1 1 1 1 1 . . . Scrap Searched 10 | . . . 1 . 9 . . . Spaces Dug 1 | . 1 . . . . . . . Terrain Destroyed 183 | . 1 12 43 3 . 53 65 6 Melee . | . . . . . . . . . Projectile 11 | . 1 . 1 3 . . 2 4 AOE 170 | . . 12 42 . . 53 63 . Terrain Rammed . | . . . . . . . . . Walls Destroyed . | . . . . . . . . . Machines Disabled . | . . . . . . . . . Actions | -11 -10 -10 -10 -8 -8 -6 -6 -6 --------- Run | Yrd Mat Min Sub Rec Scr Fac Gar Fac Total 10304 | 117 350 259 1191 628 4393 642 1987 737 Wait 761 | . 80 110 133 10 98 123 162 45 Move 8673 | 92 231 134 977 560 4144 448 1590 497 Hop . | . . . . . . . . . Pick Up 186 | 7 5 3 10 11 80 15 30 25 Fast Attach 47 | 8 . . 6 7 2 4 16 4 Attach 38 | . 2 . 1 2 2 11 12 8 Detach 10 | . . . . . 3 2 5 . Swap 102 | . 4 5 8 5 1 7 34 38 Drop 170 | 2 3 2 15 18 63 3 40 24 Fire 293 | 8 25 5 41 15 . 28 76 95 Melee 5 | . . . . . . 1 4 . Ram . | . . . . . . . . . Kick . | . . . . . . . . . Crush . | . . . . . . . . . Escape Stasis 8 | . . . . . . . 8 . Rewire 1 | . . . . . . . 1 . Trap 8 | . . . . . . . 8 . Miscellaneous 2 | . . . . . . . 1 1 Route ------- -11/Scrapyard -10/Materials (discovered 2 exits: [*Mat] / [*Min]) -10/Mines -10/Subcaves -8/Recycling (discovered 2 exits: *Fac / *Scr) -8/Scraptown (discovered 2 exits: *Fac x2) -6/Factory (discovered 9 exits: Fac x4 / Low x2 / Ext x2 / Gar) -6/Garrison (discovered 3 exits: *Fac x3) -6/Factory (discovered 1 exit: *Fac) History --------- Turn | Location | Event 4 | -11/Scrapyard | Discovered new exit (range 16) 123 | -11/Scrapyard | Entered Materials 337 | -10/Materials | Build established: Mutant 352 | -10/Materials | Discovered new exit (range 8) 493 | -10/Materials | Discovered new exit (range 8) 508 | -10/Materials | Entered Mines 544 | -10/Mines | Received a Rocket Launcher from a helpful Derelict 571 | -10/Mines | Met a Derelict bent on vengeance 731 | -10/Mines | Discovered new exit (range 10) 776 | -10/Mines | Entered Subcaves 779 | -10/Subcaves | Ambushed by Subdwellers from Twisted Machinery 780 | -10/Subcaves | Core integrity fell below 50% 1172 | -10/Subcaves | Visited Clippyterm 1176 | -10/Subcaves | Learned Factory trap positions 1176 | -10/Subcaves | Learned Factory garrison access intel 1238 | -10/Subcaves | A swath of the cavern ceiling suddenly collapsed 1343 | -10/Subcaves | Build established: Scavenger-Mutant 1410 | -10/Subcaves | Shifting Twisted Machinery released Sub. Machine Gun 1418 | -10/Subcaves | Shifting Twisted Machinery released Sub. Beam Cannon 1454 | -10/Subcaves | Ambushed by Subdwellers from Twisted Machinery 1475 | -10/Subcaves | Shifting Twisted Machinery released Shrapnel Trap 1728 | -10/Subcaves | Build established: Mutant 1809 | -10/Subcaves | Core integrity fell below 20% 1876 | -10/Subcaves | Discovered new exit (range 20) 2114 | -10/Subcaves | Entered Recycling 2115 | -8/Recycling | Met a Zionite searching for Scraptown 2455 | -8/Recycling | Scanned before Scraplab entrance 2457 | -8/Recycling | Build established: Scavenger-Mutant 2465 | -8/Recycling | Discovered new exit (range 11) 2534 | -8/Recycling | Discovered new exit (range 19) 2692 | -8/Recycling | Entered Scraplab 2712 | -8/Recycling | Entered Scraptown 2780 | -8/Scraptown | Build established: Mutant 3184 | -8/Scraptown | Visited UFD Registry 3184 | -8/Scraptown | Registered with UFD as "Matterrunner" 3192 | -8/Scraptown | Visited Symbiants 3218 | -8/Scraptown | Visited The Evicted 3239 | -8/Scraptown | Visited Shadow of the Wyrm 3273 | -8/Scraptown | Discovered new exit (range 9) 3387 | -8/Scraptown | Visited TADAMA 3421 | -8/Scraptown | Visited Red Mages 3544 | -8/Scraptown | Visited Junk Cannon Lab 3578 | -8/Scraptown | Visited Chapter 10 3640 | -8/Scraptown | Visited Supply Room 3658 | -8/Scraptown | Visited Analyses Database 3720 | -8/Scraptown | Visited Scrapoid Pod Storage 3743 | -8/Scraptown | Visited Cartography Club 3775 | -8/Scraptown | Found Surveybot 17 Chip 3819 | -8/Scraptown | Learned location of Extension (-6) 3819 | -8/Scraptown | Learned location of Armory (-3) 3819 | -8/Scraptown | Learned 16 Factory zone layouts 3819 | -8/Scraptown | Learned 24 Factory zone layouts 3819 | -8/Scraptown | Learned 12 Research zone layouts 3819 | -8/Scraptown | Learned 16 Research zone layouts 3819 | -8/Scraptown | Learned 8 Access zone layouts 3819 | -8/Scraptown | Learned 4 Recycling zone layouts 3819 | -8/Scraptown | Learned 16 Lower Caves zone layouts 3819 | -8/Scraptown | Learned 12 Upper Caves zone layouts 3819 | -8/Scraptown | Learned 12 Proximity Caves zone layouts 3819 | -8/Scraptown | Learned location of 1 exit from Factory 3819 | -8/Scraptown | Learned location of 1 exit from Research 3966 | -8/Scraptown | Visited Curators Association 4001 | -8/Scraptown | Visited Derelict Rescue Squad 4155 | -8/Scraptown | Visited Botcube Research 4174 | -8/Scraptown | Found Lrg. Botcube 4404 | -8/Scraptown | Found Scrapoid Pod 4594 | -8/Scraptown | Visited Science Guys 4983 | -8/Scraptown | Visited Spacefarers 5042 | -8/Scraptown | Visited Bundlers 5307 | -8/Scraptown | Found Scrap Suit 5806 | -8/Scraptown | Build established: Hauler-Mutant 7520 | -8/Scraptown | Lrg. Botcube activated 7548 | -8/Scraptown | Lrg. Botcube completed mutation into treaded form, armed with 3 guns, 1 cannon. 7813 | -8/Scraptown | Found Scrap Suit 8454 | -8/Scraptown | Discovered new exit (range 3) 8460 | -8/Scraptown | Entered Factory 8460 | -6/Factory | Accompanied by 1 ally 8460 | -6/Factory | Evolved 8 slots: Propulsion x2, Utility x5, Weapon x1 8461 | -6/Factory | Identified exit to Lower Caves 8462 | -6/Factory | Identified exit to Factory 8463 | -6/Factory | Identified exit to Extension 8464 | -6/Factory | Loaded intel: 102 trap records 8465 | -6/Factory | Loaded intel: 3 garrison access locations 8768 | -6/Factory | Build established: Hauler-Tank 9212 | -6/Factory | Lost 5 parts (1p1u3w) 9387 | -6/Factory | Identified exit to Garrison 9392 | -6/Factory | Entered Garrison 9392 | -6/Garrison | Accompanied by 1 ally 9586 | -6/Garrison | Triggered checkpoint 9750 | -6/Garrison | Build established: Hauler-Skirmisher 9806 | -6/Garrison | Triggered checkpoint 10025 | -6/Garrison | Triggered checkpoint 10035 | -6/Garrison | Triggered checkpoint 10096 | -6/Garrison | Lost 3 parts (2n1w) 10239 | -6/Garrison | Discovered new exit (range 12) 10346 | -6/Garrison | Triggered checkpoint 10396 | -6/Garrison | Installed Relay Interface Framework 10415 | -6/Garrison | Garrison Relay disabled 10457 | -6/Garrison | Triggered checkpoint 10465 | -6/Garrison | Build established: Scavenger-Skirmisher 10772 | -6/Garrison | Garrison Relay disabled 10889 | -6/Garrison | Spotted B-75 Beast 10889 | -6/Garrison | Spotted B-75 Beast 10934 | -6/Garrison | Destroyed B-75 Beast 10973 | -6/Garrison | Allies destroyed B-75 Beast 10999 | -6/Garrison | Lost 7 parts (3n1u3w) 11344 | -6/Garrison | Build established: Bothacker-Skirmisher 11652 | -6/Garrison | Discovered new exit (range 14) 11668 | -6/Garrison | Triggered checkpoint 11736 | -6/Garrison | Triggered checkpoint 11808 | -6/Garrison | Garrison Relay disabled 11966 | -6/Garrison | Garrison Relay disabled 12356 | -6/Garrison | Triggered checkpoint 12514 | -6/Garrison | Garrison Relay disabled 12630 | -6/Garrison | Triggered checkpoint 12923 | -6/Garrison | Discovered new exit (range 8) 12951 | -6/Garrison | Rescued a captive Derelict 12960 | -6/Garrison | Rescued a captive Derelict 12988 | -6/Garrison | Entered Factory 12988 | -6/Factory | Accompanied by 4 allies 13596 | -6/Factory | Discovered exit to Factory (range 14) 13665 | -6/Factory | Found Lrg. Botcube 13687 | -6/Factory | Lost 4 allies 13688 | -6/Factory | First assault squad dispatched 13706 | -6/Factory | Core integrity fell below 50% 13808 | -6/Factory | Lrg. Botcube activated 13844 | -6/Factory | Lrg. Botcube completed mutation into treaded form, armed with 2 guns, 2 cannons. 14229 | -6/Factory | Found Lrg. Botcube 14241 | -6/Factory | Cargo convoy interrupted 14537 | -6/Factory | Lost 4 allies 14545 | -6/Factory | Core integrity fell below 20% 14549 | -6/Factory | Released all parts (4) 14559 | -6/Factory | Destroyed by G-50 Soldier with Heavy Laser Last Messages --------------- 14538_ HV Slug penetrates G-50 Soldier. 14538_ HV Slug penetrates Wall. 14538_ Hyp. Gauss Rifle severed. 14539_ Fission Core destroyed. 14540_ Imp. Heavy Treads destroyed. 14540_ Hyp. Gauss Rifle destroyed. 14542_ Focal Shield destroyed. 14546_ Critical hit (Burn: +37). 14546_ Axe melted. 14546_ L-41 Fighter destroyed. 14549_ Dropped Powered Hammer. 14549_ Released Machine Analyzer. 14549_ Released Cargo Storage Unit. 14549_ Released System Shield. 14549_ Released Gatling Laser. 14549_ Acquired 13 matter. 14550_ Overheating: Energy bleed (-8). 14550_ Acquired 70 matter. 14551_ Acquired Imp. Grenade Launcher. 14552_ Imp. Grenade Launcher destroyed. Map ----- +----------------------------------------------------+ | ?????????????????????????"""????????????????#????? | | ??????????????????????????""????????????????# ???? | | ??????????????????????????"" ??????????????# ??? | | ??????????????????????# ??? #?????????????# ?? | | ??????????????????????# """ #?????"""?????# ? | | ?????????????????"""??# """ #?????"""?????# | | ???????????????"""""??# """ +?????"""?????# | | ???????????????"""""??# "" #????????+ | | ?????????????????????## "" #??????????????##### | | ???????????????""?""?# #??????????????????? | | ???????????????""S"" # #??????????????????? | | ???????????????"""" + g ???????????????????? | | ??????????????????? # #???###########????## | | ???????????????????### ^^ #???# ######T | | ???????????###????## ^^ H##### | | ?????????? ##### %!!%!] % | | ?????????? ] =!%!=![ % % | | "????????# %% % = *%=%!!* % <% | | "????????? % %[[=!%!= % | | "?????????? ##### !=[%!%%| % | | ???????????????????# !!*####### % | | ???????????????????## %[##?????#"%% ####### | | ???????????????????#; !########## ######## | | ????????????????????#u % #%! # # | | ????????????????????# %+==*! #% # [[! | | ????????????????????# @#!=!! # % # [[! | | ???????????????????## #[ ! # # [!! | | ???????????????????## #=/ = # # | | ????????????????????# #!|![ # # [ | | ????????????????????# g#%|! # %# | | ????????????????????# +! # ##+###### | | ????????????????????# # # "%" | | ????????????????????# ########## %" | | ????????????????????# #????????# """= | | ????????????????????+ #?????#### ! """ | | ????????????????????#######?????# ! """ | | ????????????????????????????????# ! """ " " | | ????????????????????????????????# "T" | | ????????????????????????????????# """ | | ????????????????????????????????# #### | | ????????????????????????????????###############??? | | ?????????????????????????????????????????????????? | | ?????????????????????????????????????????????????? | | ?????????????????????????????????????????????????? | | | | | | | | | | | | | +----------------------------------------------------+ Best States ------------- Heat Dissipation 75 Energy Generation 18 Energy Capacity 525 Matter Stores 300 Matter Capacity 300 Sight Range 21 Robot Scan Range 14 Terrain Scan Range 16 Terrain Scan Density 10 Jamming Range 12 Additional Mass Support 12 Armor Coverage 375 Resistance: KI 20 Resistance: TH 10 Evasion (%) 50 Recoil Reduction 4 Offensive Hacking 10 Defensive Hacking 10 Relay Coupler Types 3 Relay Coupler Value 61 Authchip Count 1 Item Schematics ----------------- None Robot Schematics ------------------ O-24 Administrator | -8/Recycling | Hacked A-02 Transporter | -8/Recycling | Hacked Fabricated ------------ Nothing Alien Tech Used ----------------- None Achievements -------------- None Challenges ------------ None Game ------ Seed AlertVampiricTerrabomb Manual? 0 Play Time 04:21:47 Cumulative 234.2 hours Start 2025.03.15 @ 12:04:46 End 2025.03.15 @ 17:49:42 Sessions 1 Manual Loads 0 Difficulty Rogue Special Mode None Game No. 62 Rogue 62 Adventurer 0 Explorer 0 Win Type - Total 1 Types 1/0/0/0/0/0/0/0/0 Lore% 54 Gallery% 61 Achievement% 50 Wizard Run 0 Options --------- Layout 0 ASCII 1 Keyboard 0 Movement Mouse Keybinds 0 Fullscreen 1 Font 36/Crisp Map View 76x50 Zoom Use 0% Tactical HUD 1 Map Filters NONE Filters NONE Steam 1 RUN: 781b97e2-bbcb-4e68-95a0-ade22644b597